bitfinex-derivatives/quotes_ETHF0:USTF0_20250321
["timestamp","ask_amount","ask_price","bid_price","bid_amount"]
[1742586912460,5.60413,1975.8,1975.7,2.30917763]
[1742586912859,5.60413,1975.8,1975.7,1.29639763]
[1742586914350,8.81193,1975.8,1975.7,0.00759763]
[1742586915756,5.60413,1975.8,1975.7,0.00759763]
[1742586916162,8.81193,1975.8,1975.7,0.00759763]
[1742586921056,10.38306045,1975.8,1974.9,11.61266]
[1742586921263,1.01305,1975.3,1975.2,1.3192]
[1742586921571,4.25505,1975.3,1975.2,1.3192]
[1742586921961,5.60685,1975.3,1975.2,1.3192]
[1742586922159,1.01304,1975.2,1975.1,0.00759763]
[1742586922459,2.36484,1975.2,1975.1,0.00759763]
[1742586922660,5.57264,1975.2,1975.1,0.00759763]
[1742586923462,2.36484,1975.2,1975.1,1.02068763]
[1742586923657,4.25501,1975.3,1975.1,0.00759763]
[1742586923868,5.60681,1975.3,1975.2,1.70114]
[1742586924369,0.00759763,1975.4,1975.3,1.01299]
[1742586924572,0.00759763,1975.4,1975.3,2.40459]
[1742586926574,1.02052763,1975.4,1975.3,2.40459]
[1742586926775,0.00759763,1975.4,1975.3,2.40459]
[1742586927972,2.37492763,1975.4,1975.3,2.40459]
[1742586929681,2.37492763,1975.4,1975.3,1.3916]
[1742586930081,1.01304,1975.2,1975.1,0.00759763]
[1742586930287,7.46384,1975.2,1975.1,1.42239763]
[1742586930580,4.25604,1975.2,1975.1,1.42239763]
[1742586930774,4.94834,1975.2,1975.1,1.42239763]
[1742586930977,8.15614,1975.2,1975.1,0.00759763]
[1742586931383,56.36874,1975.2,1975.1,0.00759763]
[1742586931583,1.01324,1974.8,1974.7,0.6947]
[1742586931782,4.25624,1974.8,1974.7,2.0017]
[1742586932081,4.25624,1974.8,1974.7,3.01499]
[1742586932678,3.243,1974.8,1974.7,3.01499]
[1742586934089,3.243,1975.0,1974.9,1.01319]
[1742586934787,3.243,1975.0,1974.9,1.68309]
[1742586934988,4.25614,1975.0,1974.9,1.68309]
[1742586935381,3.243,1975.0,1974.9,1.68309]
[1742586936588,3.243,1975.0,1974.9,3.04469]
[1742586937993,1.0131,1975.1,1975.0,1.01314]
[1742586938292,1.0131,1975.1,1975.0,2.29104]
[1742586938988,2.3884,1975.1,1975.0,2.29104]
[1742586940286,1.3753,1975.1,1975.0,2.29104]
[1742586940692,51.07008,1975.2,1975.1,1.01309]
[1742586940885,52.44238,1975.2,1975.1,2.99869]
[1742586942386,51.4293,1975.2,1975.1,2.99869]
[1742586942687,51.07004,1975.2,1975.1,2.99869]
[1742586942895,52.44234,1975.2,1975.1,2.99869]
[1742586943694,51.4293,1975.2,1975.1,2.99869]
[1742586943893,52.44234,1975.2,1975.1,2.99869]
[1742586944286,51.4293,1975.2,1975.1,2.99869]
[1742586944888,52.44234,1975.2,1975.1,2.99869]
[1742586947091,52.44234,1975.2,1975.1,2.33969]
[1742586947797,52.44234,1975.2,1975.1,1.3266]
[1742586947995,52.44234,1975.2,1974.9,1.3154]
[1742586947996,51.4293,1975.2,1974.9,1.3154]
[1742586948196,1.01319,1974.9,1974.8,1.01319]
[1742586948398,4.25619,1974.9,1974.8,1.3453]
[1742586948595,4.25619,1974.9,1974.8,2.35854]
[1742586948794,4.25619,1974.9,1974.8,1.3453]
[1742586948993,4.25619,1974.9,1974.8,2.35854]
[1742586949898,4.25619,1974.9,1974.8,3.00864]
[1742586952597,4.25619,1974.9,1974.8,2.35854]
[1742586954895,1.01329,1974.7,1974.6,1.02086763]
[1742586955101,1.01329,1974.7,1974.6,2.33396763]
[1742586955301,1.01329,1974.7,1974.6,43.13396763]
[1742586955706,1.67829,1974.7,1974.6,43.13396763]
[1742586956205,3.04169,1974.7,1974.6,44.42446763]
[1742586956506,2.37669,1974.7,1974.6,44.42446763]
[1742586959505,1.3634,1974.7,1974.6,44.42446763]
[1742586960216,1.3339,1975.0,1974.7,2.53324]
[1742586960403,4.552,1975.0,1974.9,1.01319]
[1742586960605,3.243,1975.0,1974.9,1.01319]
[1742586960805,55.10308,1975.2,1975.1,1.01309]
[1742586961006,50.056,1975.2,1975.1,1.01309]
[1742586961202,46.813,1975.2,1975.1,1.01309]
[1742586961405,46.813,1975.2,1975.1,2.30059]
[1742586962013,4.25599,1975.3,1975.2,1.01304]
[1742586962210,3.243,1975.3,1975.2,2.30054]
[1742586972316,0.00759763,1975.4,1975.3,1.01299]
[1742586972514,0.00759763,1975.4,1975.3,3.06389]
[1742586973818,1.02052763,1975.4,1975.3,3.06389]
[1742586974824,1.02052763,1975.4,1975.3,2.35689]
[1742586975014,1.67372763,1975.4,1975.3,2.35689]
[1742586975315,4.88152763,1975.4,1975.3,1.3439]
[1742586975517,4.88152763,1975.4,1975.3,2.35689]
[1742586975716,4.88152763,1975.4,1975.3,1.3439]
[1742586975912,4.88152763,1975.4,1975.3,2.35689]
[1742586976117,4.88152763,1975.4,1975.3,1.3439]
[1742586977118,4.88152763,1975.4,1975.3,2.35689]
[1742586977611,4.88152763,1975.4,1975.3,1.01299]
[1742586977916,1.01299,1975.3,1975.2,2.35061]
[1742586978218,4.95659,1975.3,1975.2,2.35061]
[1742586978813,3.9436,1975.3,1975.2,2.35061]
[1742586979113,3.243,1975.3,1975.2,2.35061]
[1742586981122,0.00759763,1975.4,1975.3,1.01299]
[1742586981323,51.3868,1975.7,1975.6,1.01283]
[1742586981525,50.069,1975.7,1975.6,1.01283]
[1742586981922,50.069,1975.7,1975.6,2.95533]
[1742586982624,46.826,1975.7,1975.6,2.95533]
[1742586982919,1.32539763,1975.8,1975.7,1.01278]
[1742586983225,1.32539763,1975.8,1975.7,2.38658]
[1742586984717,0.00759763,1975.8,1975.7,2.38658]
[1742586985237,0.00759763,1975.8,1975.7,5.59438]
[1742586986019,1.33149763,1975.8,1975.7,5.59438]
[1742586987728,1.33149763,1975.8,1975.7,2.38658]
[1742586988630,0.00759763,1975.8,1975.7,5.59438]
[1742586989130,1.38089763,1975.8,1975.7,5.59438]
[1742586990433,2.39362763,1975.8,1975.7,2.38658]
[1742586991329,2.39362763,1975.8,1975.7,1.01278]
[1742586991631,1.01282,1975.7,1975.6,2.33278]
[1742586991818,3.66962,1975.7,1975.6,2.33278]
[1742586994624,3.66962,1975.7,1975.4,0.6683]
[1742586994625,9.1066,1975.7,1975.4,0.6683]
[1742586994825,1.01288,1975.5,1975.4,3.04001]
[1742586995127,4.25488,1975.5,1975.4,2.37171]
[1742586995324,4.25488,1975.5,1975.4,1.3588]
[1742586995524,1.01293,1975.4,1975.3,1.01295]
[1742586995828,1.01293,1975.4,1975.3,2.40335]
[1742586995829,3.05473,1975.4,1975.3,2.40335]
[1742586996023,1.01299,1975.3,1975.2,1.7123]
[1742586996333,1.9927,1975.3,1975.2,2.40344]
[1742586996538,6.4498,1975.5,1975.4,1.01293]
[1742586996726,3.242,1975.5,1975.4,1.01293]
[1742586997929,4.25488,1975.5,1975.4,2.40333]
[1742586998325,3.242,1975.5,1975.4,2.40333]
[1742586998526,4.25488,1975.5,1975.4,2.40333]
[1742586998731,5.63248,1975.5,1975.4,2.40333]
[1742586999125,4.6196,1975.5,1975.4,2.40333]
[1742587000220,5.63248,1975.5,1975.4,2.40333]
[1742587000935,4.6196,1975.5,1975.4,2.40333]
[1742587001137,3.242,1975.5,1975.4,2.40333]
[1742587001531,0.00759763,1975.8,1975.4,1.3904]
[1742587001731,4.5359,1975.7,1975.6,1.01283]
[1742587002132,5.54868,1975.7,1975.6,41.81283]
[1742587002437,4.5359,1975.7,1975.6,41.81283]
[1742587002635,5.54868,1975.7,1975.6,1.01283]
[1742587003238,6.21518,1975.7,1975.6,1.01283]
[1742587005743,5.2024,1975.7,1975.6,1.01283]
[1742587005941,5.54868,1975.7,1975.6,1.01283]
[1742587006239,4.5359,1975.7,1975.6,1.01283]
[1742587006842,0.00759763,1975.8,1975.7,1.01278]
[1742587007038,1.29619763,1975.8,1975.7,1.01278]
[1742587008245,2.30892763,1975.8,1975.7,1.01278]
[1742587009256,1.29619763,1975.8,1975.7,1.01278]
[1742587009646,2.30892763,1975.8,1975.7,1.01278]
[1742587010645,2.99472763,1975.8,1975.7,1.01278]
[1742587012054,1.01283,1975.7,1975.6,1.01278]
[1742587012353,2.34033,1975.7,1975.6,1.01278]
[1742587013448,1.3275,1975.7,1975.6,1.01278]
[1742587014254,2.34028,1975.7,1975.6,1.01278]
[1742587014854,5.58228,1975.7,1975.6,1.01278]
[1742587019258,5.58228,1975.7,1975.6,2.41018]
[1742587023652,1.01283,1975.6,1975.5,1.67795]
[1742587023854,2.96463,1975.6,1975.5,2.30915]
[1742587026459,3.242,1975.7,1975.6,1.01283]
[1742587026757,4.5502,1975.7,1975.6,3.75943]
[1742587027456,0.00759763,1975.8,1975.7,1.01278]
[1742587027660,3.24959763,1975.8,1975.7,2.42758]
[1742587028162,4.55779763,1975.8,1975.7,2.42758]
[1742587029165,5.57052763,1975.8,1975.7,2.42758]
[1742587029857,4.55779763,1975.8,1975.7,2.42758]
[1742587030063,5.57052763,1975.8,1975.7,2.42758]
[1742587030563,4.55779763,1975.8,1975.7,2.42758]
[1742587031665,5.57052763,1975.8,1975.7,2.42758]
[1742587033165,4.55779763,1975.8,1975.7,2.42758]
[1742587034061,5.57052763,1975.8,1975.7,2.42758]
[1742587035467,6.46771549,1975.8,1975.7,2.42758]
[1742587037463,5.57052763,1975.8,1975.7,2.42758]
[1742587037967,5.57052763,1975.8,1975.7,1.4148]
[1742587038266,9.67552922,1975.8,1975.7,2.42758]
[1742587038463,11.02712922,1975.8,1975.7,2.42758]
[1742587038667,11.02712922,1975.8,1975.7,1.4148]
[1742587038863,11.02712922,1975.8,1975.7,2.42758]
[1742587040262,10.12992763,1975.8,1975.7,1.4148]
[1742587040458,10.12992763,1975.8,1975.7,2.42758]
[1742587041569,10.12992763,1975.8,1975.7,1.4148]
[1742587041765,6.92212763,1975.8,1975.7,2.42758]
[1742587044171,10.12992763,1975.8,1975.7,2.42758]
[1742587044472,6.92212763,1975.8,1975.7,2.42758]
[1742587044867,6.92212763,1975.8,1975.7,1.4148]
[1742587045068,1.01287,1975.6,1975.5,1.01281]
[1742587046572,1.01287,1975.6,1975.5,2.34991]
[1742587047669,4.25487,1975.6,1975.5,2.34998]
[1742587048170,5.56437,1975.6,1975.5,2.34998]
[1742587048562,4.5515,1975.6,1975.5,2.34998]
[1742587048761,5.56433,1975.6,1975.5,2.34998]
[1742587049877,5.56433,1975.6,1975.5,1.3371]
[1742587050172,5.56433,1975.6,1975.5,2.34998]
[1742587054264,8.77213,1975.6,1975.5,2.34998]
[1742587054466,1.01288,1975.5,1975.4,0.6826]
[1742587054674,2.7261,1975.5,1975.3,1.01299]
[1742587054875,3.242,1975.4,1975.3,1.01299]
[1742587055076,8.79359,1975.4,1975.3,1.3882]
[1742587055577,9.68532458,1975.4,1975.3,2.40119]
[1742587055779,9.68532458,1975.4,1975.3,1.3882]
[1742587055972,9.68532458,1975.4,1975.2,1.70069]
[1742587055973,1.01299,1975.3,1975.2,1.70069]
[1742587056273,2.37799,1975.3,1975.2,1.70069]
[1742587057273,2.37799,1975.3,1975.2,3.02279]
[1742587060686,2.37799,1975.3,1975.2,2.0098]
[1742587060875,2.37799,1975.3,1975.2,3.02284]
[1742587063681,3.242,1975.4,1975.3,1.01299]
[1742587063989,3.242,1975.4,1975.3,2.31999]
[1742587064183,5.60423,1975.4,1975.3,2.31999]
[1742587068180,4.5913,1975.4,1975.3,2.31999]
[1742587069179,5.60423,1975.4,1975.3,2.31999]
[1742587070383,8.81203,1975.4,1975.3,2.31999]
[1742587071887,5.60423,1975.4,1975.3,2.31999]
[1742587072189,4.5913,1975.4,1975.3,2.31999]
[1742587072777,5.60423,1975.4,1975.3,2.31999]
[1742587072976,46.816,1975.6,1975.4,1.0129]
[1742587073187,5.66053,1975.5,1975.4,2.4197]
[1742587074289,4.6476,1975.5,1975.4,2.4197]
[1742587074790,3.242,1975.5,1975.4,2.4197]
[1742587078888,46.816,1975.6,1975.5,1.01288]
[1742587079091,46.816,1975.6,1975.5,3.01748]
[1742587080292,0.00759763,1975.8,1975.7,1.01278]
[1742587082493,1.29759763,1975.8,1975.7,1.01278]
[1742587083095,0.00759763,1975.8,1975.7,1.01278]
[1742587086700,0.00759763,1975.8,1975.7,2.39828]
[1742587089495,5.968,1976.4,1976.3,1.01247]
[1742587089694,2.34758,1976.5,1976.4,1.01242]
[1742587089897,6.52568976,1976.5,1976.4,1.01242]
[1742587090201,5.67240357,1976.5,1976.4,1.01242]
[1742587090794,6.96650357,1976.5,1976.4,1.01242]
[1742587091102,6.96650178,1976.5,1976.4,1.01242]
[1742587093494,1.01242,1976.4,1976.3,2.32622763]
[1742587093695,5.54762,1976.4,1976.3,1.02002763]
[1742587094496,2.33982,1976.4,1976.3,1.02002763]
[1742587094894,5.54762,1976.4,1976.3,0.00759763]
[1742587095097,1.01258,1976.1,1976.0,1.01258]
[1742587095297,4.25358,1976.1,1976.0,1.01258]
[1742587095789,5.54208,1976.1,1976.0,1.01258]
[1742587096003,1.01263,1976.0,1975.9,2.36604]
[1742587096204,2.30113,1976.0,1975.9,2.36604]
[1742587096502,5.50893,1976.0,1975.9,1.01264]
[1742587099301,1.01268,1975.9,1975.8,2.42509763]
[1742587099501,7.03638,1975.9,1975.8,2.42509763]
[1742587104708,7.03638,1975.9,1975.8,1.41239763]
[1742587104910,7.03638,1975.9,1975.8,0.00759763]
[1742587110518,7.03638,1975.9,1975.8,1.40749763]
[1742587112819,7.03638,1975.9,1975.8,2.42022763]
[1742587113022,7.03638,1975.9,1975.8,1.40749763]
[1742587114617,7.03638,1975.9,1975.8,2.42022763]
[1742587114828,7.03638,1975.9,1975.8,1.40749763]
[1742587118026,5.968,1976.0,1975.8,2.42022763]
[1742587118221,8.36483,1976.0,1975.9,1.71918]
[1742587118425,11.60583,1976.0,1975.9,3.12328]
[1742587118619,10.5932,1976.0,1975.9,3.12328]
[1742587118819,9.209,1976.0,1975.9,6.33108]
[1742587119223,5.968,1976.0,1975.9,6.33108]
[1742587119432,9.209,1976.0,1975.9,6.33108]
[1742587119815,9.209,1976.0,1975.9,3.12328]
[1742587120020,10.22163,1976.0,1975.9,3.12328]
[1742587120820,47.82220763,1976.1,1976.0,1.01263]
[1742587121021,46.80959763,1976.1,1976.0,2.40983]
[1742587121324,50.05059763,1976.1,1976.0,2.40983]
[1742587121728,51.06317763,1976.1,1976.0,2.40983]
[1742587123328,50.05059763,1976.1,1976.0,2.40983]
[1742587123830,51.06317763,1976.1,1976.0,2.40983]
[1742587124037,50.05059763,1976.1,1976.0,2.40983]
[1742587130727,51.06317763,1976.1,1976.0,1.3972]
[1742587130932,51.06317763,1976.1,1976.0,2.40983]
[1742587131133,52.41657763,1976.1,1976.0,2.40983]
[1742587133632,50.05059763,1976.1,1976.0,2.40983]
[1742587136442,51.06317763,1976.1,1976.0,2.40983]
[1742587136638,52.38007763,1976.1,1976.0,2.40983]
[1742587136942,51.36749763,1976.1,1976.0,2.40983]
[1742587139441,1.32449763,1976.1,1976.0,2.40983]
[1742587139838,0.00759763,1976.1,1976.0,2.40983]
[1742587140038,4.5915,1976.4,1976.3,1.01247]
[1742587140241,46.8,1976.6,1976.5,1.01237]
[1742587140445,47.81232,1976.6,1976.5,1.01237]
[1742587140951,48.1515,1976.6,1976.5,2.37297]
[1742587141441,49.16382,1976.6,1976.5,2.37297]
[1742587141648,48.1515,1976.6,1976.5,2.37297]
[1742587142638,3.2078,1977.2,1976.5,4.5684]
[1742587142845,6.29732473,1977.1,1976.7,5.73848]
[1742587143052,1.0122,1976.9,1976.8,2.31226]
[1742587143251,4.2522,1976.9,1976.8,2.31226]
[1742587143455,4.2522,1976.9,1976.8,1.3001]
[1742587143751,3.24,1976.9,1976.8,2.31232]
[1742587143956,4.5413,1976.9,1976.8,2.31232]
[1742587144247,1.01228,1976.8,1976.7,1.01223]
[1742587144451,3.04898,1976.8,1976.7,1.01223]
[1742587144646,3.04892,1976.8,1976.7,1.01223]
[1742587144853,3.04892,1976.8,1976.7,2.34403]
[1742587145652,3.04892,1976.8,1976.7,1.3318]
[1742587145653,6.25672,1976.8,1976.7,1.3318]
[1742587145852,6.25672,1976.8,1976.7,2.34407]
[1742587147261,6.25672,1976.8,1976.7,1.3318]
[1742587147758,3.04892,1976.8,1976.7,1.3318]
[1742587148156,3.04892,1976.8,1976.7,2.34407]
[1742587148356,3.04892,1976.8,1976.7,1.3318]
[1742587148557,3.04892,1976.8,1976.7,2.34407]
[1742587148756,1.01232,1976.6,1976.5,1.01235]
[1742587149354,2.38272,1976.6,1976.5,1.01235]
[1742587149662,1.01237,1976.5,1976.4,2.42089]
[1742587149860,6.27977,1976.5,1976.4,2.42089]
[1742587150055,9.51877,1976.5,1976.4,2.42089]
[1742587150557,9.51877,1976.5,1976.4,1.4085]
[1742587151662,9.51877,1976.5,1976.2,1.01251]
[1742587151663,1.01247,1976.3,1976.2,1.01251]
[1742587151856,1.01247,1976.3,1976.2,2.37421]
[1742587152057,4.25147,1976.3,1976.2,2.37421]
[1742587152261,5.59307,1976.3,1976.2,2.37421]
[1742587152661,5.59307,1976.3,1976.2,1.3617]
[1742587153463,5.59307,1976.3,1976.2,2.37422]
[1742587153765,5.59307,1976.3,1976.2,1.3617]
[1742587154465,5.59307,1976.3,1976.2,2.37422]
[1742587155167,5.59307,1976.3,1976.2,1.3617]
[1742587155568,8.80087,1976.3,1976.2,1.3617]
[1742587155869,1.01258,1976.1,1976.0,2.31258]
[1742587156067,1.01258,1976.1,1976.0,1.3]
[1742587156260,4.25158,1976.1,1976.0,2.31263]
[1742587156461,5.55508,1976.1,1976.0,1.3]
[1742587156661,6.24748,1976.1,1976.0,2.31263]
[1742587157665,6.24748,1976.1,1976.0,1.3]
[1742587158467,2.53092,1976.6,1976.0,2.31263]
[1742587158661,4.92138,1976.5,1976.4,1.01242]
[1742587158967,6.22488,1976.5,1976.4,1.01242]
[1742587159363,5.2125,1976.5,1976.4,1.01242]
[1742587159565,4.5425,1976.5,1976.4,2.32322]
[1742587160367,3.239,1976.5,1976.4,5.53102]
[1742587160763,50.029,1976.7,1976.6,1.01232]
[1742587160962,51.4407,1976.7,1976.6,1.01232]
[1742587162077,51.4407,1976.7,1976.6,1.65512]
[1742587165066,4.6507,1976.7,1976.6,1.65512]
[1742587165768,5.66297,1976.7,1976.6,1.65512]
[1742587166769,5.66297,1976.7,1976.6,0.6428]
[1742587166969,5.66297,1976.7,1976.6,1.65512]
[1742587167169,5.66297,1976.7,1976.6,2.99952]
[1742587167170,4.6507,1976.7,1976.6,2.99952]
[1742587167568,5.66297,1976.7,1976.6,2.99952]
[1742587170368,1.01239,1976.5,1976.3,0.6962]
[1742587170576,4.25139,1976.5,1976.4,1.2858]
[1742587171074,4.25139,1976.5,1976.3,2.36297]
[1742587171075,1.01242,1976.4,1976.3,2.36297]
[1742587171263,4.94042,1976.5,1976.4,1.01242]
[1742587171466,4.25142,1976.5,1976.4,1.01242]
[1742587172273,3.239,1976.5,1976.4,1.01242]
[1742587172475,3.239,1976.5,1976.4,2.31532]
[1742587173173,4.25137,1976.5,1976.4,2.31532]
[1742587173680,3.239,1976.5,1976.4,2.31532]
[1742587174078,4.25137,1976.5,1976.4,2.31532]
[1742587174575,3.239,1976.5,1976.4,2.31532]
[1742587174766,4.25137,1976.5,1976.4,2.31532]
[1742587175568,4.25137,1976.5,1976.4,1.3029]
[1742587176168,4.25137,1976.5,1975.8,10.94319763]
[1742587176169,6.4468,1976.5,1975.9,3.2078]
[1742587176475,1.01263,1976.0,1975.9,1.66037]
[1742587176880,1.01263,1976.0,1975.9,0.6477]
[1742587177084,1.01268,1975.9,1975.8,0.00759763]
[1742587177280,4.25168,1975.9,1975.8,0.00759763]
[1742587178081,4.25168,1975.9,1975.8,1.02032763]
[1742587178082,7.45948,1975.9,1975.8,1.02032763]
[1742587178286,7.45948,1975.9,1975.8,2.30152763]
[1742587179179,7.45948,1975.9,1975.8,0.00759763]
[1742587182484,4.25168,1975.9,1975.8,0.00759763]
[1742587182673,7.45948,1975.9,1975.8,0.00759763]
[1742587183372,1.01288,1975.5,1975.4,43.1981]
[1742587183577,4.25188,1975.5,1975.4,41.8129]
[1742587183777,1.01293,1975.4,1975.3,2.31907]
[1742587185385,1.01299,1975.3,1975.2,0.00759763]
[1742587185583,7.46079,1975.3,1975.2,0.00759763]
[1742587186385,7.5446794,1975.3,1975.2,0.00252493]
[1742587189183,8.8882794,1975.3,1975.2,0.00252493]
[1742587191186,7.8752894,1975.3,1975.2,1.01556493]
[1742587191379,7.7914,1975.3,1975.2,1.01556493]
[1742587191579,8.88827138,1975.3,1975.2,0.00252493]
[1742587191783,8.80439,1975.3,1975.2,0.00252493]
[1742587192191,8.8882709,1975.3,1975.2,0.00252493]
[1742587193189,4.6674809,1975.3,1975.2,1.01556493]
[1742587193386,5.59659,1975.3,1975.2,1.01556493]
[1742587193588,8.80439,1975.3,1975.2,1.01556493]
[1742587194091,8.80439,1975.3,1975.2,0.00252493]
[1742587194595,8.80439,1975.3,1975.2,1.01556493]
[1742587195292,5.968,1975.4,1975.3,1.01299]
[1742587195700,9.214,1975.4,1975.3,1.01299]
[1742587196292,13.43473,1975.4,1975.3,1.01299]
[1742587196492,14.85013,1975.4,1975.3,1.01299]
[1742587197094,1.01299,1975.3,1975.2,0.00252493]
[1742587197290,3.08519,1975.3,1975.2,0.00252493]
[1742587197796,3.16907233,1975.3,1975.2,0.00252493]
[1742587197991,3.16907228,1975.3,1975.2,0.00252493]
[1742587198187,3.08519,1975.3,1975.2,0.00252493]
[1742587198396,3.16907598,1975.3,1975.2,0.00252493]
[1742587199184,3.08519,1975.3,1975.2,0.00252493]
[1742587199387,3.16907685,1975.3,1975.2,0.00252493]
[1742587200197,9.13707685,1975.3,1975.2,0.00252493]
[1742587200695,11.63707685,1975.3,1975.2,0.00252493]
[1742587200893,9.13707685,1975.3,1975.2,0.00252493]
[1742587202501,9.13708111,1975.3,1975.2,0.00252493]
[1742587202805,9.227,1975.3,1975.2,1.01556493]
[1742587203099,3.259,1975.3,1975.2,1.01556493]
[1742587203495,4.27199,1975.3,1975.2,1.01556493]
[1742587203799,5.61749,1975.3,1975.2,1.01556493]
[1742587204101,5.61749,1975.3,1975.2,1.65626493]
[1742587205490,3.259,1975.3,1975.2,1.65626493]
[1742587205887,4.27199,1975.3,1975.2,1.65626493]
[1742587206096,3.259,1975.3,1975.2,1.65626493]
[1742587206492,3.2078,1975.4,1975.3,1.01299]
[1742587206691,6.4658,1975.4,1975.3,1.66359]
[1742587207016,0.00759763,1975.5,1975.4,1.01293]
[1742587207298,0.00759763,1975.5,1975.4,2.41773]
[1742587208105,1.02047763,1975.5,1975.4,2.41773]
[1742587208401,0.00759763,1975.5,1975.4,2.41773]
[1742587208801,50.0048,1975.8,1975.7,1.01278]
[1742587208997,53.2658,1975.8,1975.7,1.01278]
[1742587209192,50.058,1975.8,1975.7,1.01278]
[1742587209605,50.058,1975.8,1975.7,2.38438]
[1742587210697,53.2658,1975.8,1975.7,2.38438]
[1742587211097,54.27853,1975.8,1975.7,2.38438]
[1742587211292,54.27853,1975.8,1975.7,1.3716]
[1742587212206,54.27853,1975.8,1975.7,2.38438]
[1742587212499,51.07073,1975.8,1975.7,2.38438]
[1742587212705,51.07073,1975.8,1975.7,1.3716]
[1742587212902,46.797,1975.8,1975.7,2.38438]
[1742587213107,3.262,1975.8,1975.7,2.38438]
[1742587213705,0.00507271,1975.9,1975.8,1.01273]
[1742587213899,3.26807271,1975.9,1975.8,3.09253]
[1742587214300,50.08,1976.3,1975.9,2.53162]
[1742587214500,51.09249,1976.3,1976.2,1.01252]
[1742587214709,50.08,1976.3,1976.2,1.01252]
[1742587215007,3.265,1976.3,1976.2,1.01252]
[1742587215506,3.265,1976.3,1976.2,1.66542]
[1742587216103,1.01243,1976.4,1976.3,1.01247]
[1742587216409,1.01243,1976.4,1976.3,1.3321]
[1742587216596,2.39073,1976.4,1976.3,1.3321]
[1742587217704,2.39073,1976.4,1976.3,2.34457]
[1742587218003,1.3783,1976.4,1976.3,2.34457]
[1742587218205,6.4718,1976.5,1976.4,1.01242]
[1742587218408,1.2973,1976.6,1976.5,1.01237]
[1742587218611,3.265,1976.6,1976.5,2.32167]
[1742587218907,2.30961,1976.7,1976.6,1.01232]
[1742587218908,1.01228,1976.7,1976.6,1.01232]
[1742587219100,3.265,1976.7,1976.6,3.02902]
[1742587219503,4.27727,1976.7,1976.6,3.02902]
[1742587219998,5.57457,1976.7,1976.6,3.02902]
[1742587220398,4.27727,1976.7,1976.6,3.02902]
[1742587220702,0.6725,1977.1,1977.0,1.01211]
[1742587220908,1.01219,1976.9,1976.8,1.01217]
[1742587221207,1.01225,1976.8,1976.7,1.01223]
[1742587221508,2.40035,1976.8,1976.7,1.01223]
[1742587221703,5.60815,1976.8,1976.7,1.01223]
[1742587222001,1.01227,1976.7,1976.6,0.7074]
[1742587222204,1.01232,1976.6,1976.5,1.01236]
[1742587222608,1.01232,1976.6,1976.4,1.70518]
[1742587222609,1.01237,1976.5,1976.4,1.70518]
[1742587222798,2.40045,1976.6,1976.5,1.01237]
[1742587223205,1.01237,1976.5,1976.4,1.70518]
[1742587223402,2.40045,1976.6,1976.5,1.01237]
[1742587224709,1.01237,1976.5,1976.4,1.70517]
[1742587224907,4.28331,1976.7,1976.6,1.01232]
[1742587225210,3.268,1976.7,1976.6,1.01232]
[1742587225909,4.28027,1976.7,1976.6,1.01232]
[1742587226809,1.01234,1976.6,1976.5,1.01233]
[1742587227009,4.28031,1976.7,1976.6,1.01229]
[1742587227212,5.66911,1976.7,1976.6,1.01229]
[1742587227615,1.01236,1976.6,1976.5,1.01234]
[1742587227805,2.40116,1976.6,1976.5,1.01234]
[1742587229220,1.01242,1976.4,1976.3,0.6856]
[1742587229511,4.27942,1976.4,1976.3,1.69807]
[1742587230019,5.61842,1976.4,1976.3,1.69807]
[1742587231105,4.27942,1976.4,1976.3,1.69807]
[1742587231308,3.267,1976.4,1976.3,1.69807]
[1742587233415,2.3162,1976.5,1976.4,1.01242]
[1742587234414,2.31617,1976.5,1976.4,1.01242]
[1742587234620,1.3038,1976.5,1976.4,1.01242]
[1742587235513,4.27832,1976.6,1976.5,1.01237]
[1742587235712,4.5678,1976.6,1976.5,1.01237]
[1742587236713,5.58012,1976.6,1976.5,1.01237]
[1742587238321,4.5678,1976.6,1976.5,1.01237]
[1742587240811,4.5678,1976.6,1976.5,2.37837]
[1742587241014,3.266,1976.6,1976.5,2.37837]
[1742587241421,4.5545,1976.6,1976.5,2.37837]
[1742587241924,3.266,1976.6,1976.5,2.37837]
[1742587242723,4.5475,1976.7,1976.6,1.01232]
[1742587242918,5.55977,1976.7,1976.6,3.77692]
[1742587245324,4.5475,1976.7,1976.6,3.77692]
[1742587246129,5.55977,1976.7,1976.6,3.77692]
[1742587247529,4.5475,1976.7,1976.6,3.77692]
[1742587247728,5.55977,1976.7,1976.6,3.77692]
[1742587249329,5.55977,1976.7,1976.6,1.01232]
[1742587249643,1.01237,1976.6,1976.5,1.01236]
[1742587249943,5.55747,1976.6,1976.5,1.01236]
[1742587250236,5.55747,1976.6,1976.4,1.3115]
[1742587250237,1.01237,1976.5,1976.4,2.32388]
[1742587250438,5.60167,1976.5,1976.4,2.32388]
[1742587251149,4.5893,1976.5,1976.4,2.32388]
[1742587251440,3.252,1976.5,1976.4,5.53168]
[1742587252336,3.252,1976.5,1976.4,2.32388]
[1742587253240,4.6591,1976.5,1976.4,2.32388]
[1742587253446,5.67147,1976.5,1976.4,2.32388]
[1742587253645,6.36087,1976.5,1976.4,2.32388]
[1742587253939,5.60280248,1976.5,1976.4,2.32388]
[1742587254337,4.6591,1976.5,1976.4,2.32388]
[1742587256245,5.67147,1976.5,1976.4,2.32388]
[1742587256447,5.67147,1976.5,1976.4,1.01238]
[1742587257042,6.6152167,1976.5,1976.4,2.37508]
[1742587257245,7.47042349,1976.5,1976.4,2.37508]
[1742587257446,6.6152167,1976.5,1976.4,2.37508]